[Event "Polish Youth 1st League 2022"]
[Site "Lublin"]
[Date "2022.06.25"]
[Round "1.29"]
[White "Bugaj, Hanna"]
[Black "Starosta, Martyna"]
[Result "0-1"]
[ECO "E16"]
[WhiteElo "1779"]
[BlackElo "1918"]
[Annotator "NA RC"]
[PlyCount "202"]
[EventDate "2022.06.24"]
[EventType "team-tourn"]
[EventCountry "POL"]
[SourceTitle "playchess.com"]
[Source "ChessBase"]
[SourceQuality "1"]
[TimeControl "40/5400+30:1800+30"]

1. d4 {[%emt 0:00:03]} Nf6 {[%emt 0:00:18]} 2. c4 {[%emt 0:00:10]} e6 {[%emt 0:00:05]} 3. Nf3 {[%emt 0:00:20]} Bb4+ {[%emt 0:00:07]} 4. Bd2 {[%emt 0:01:08]} Qe7 {[%emt 0:00:07]} 5. a3 {[%emt 0:06:48]} Bxd2+ {[%emt 0:00:16]} 6. Qxd2 {[%emt 0:00:52]} Ne4 {[%emt 0:06:27]} 7. Qc2 {[%emt 0:00:38]} d5 {[%emt 0:00:23]} 8. Nc3 {[%emt 0:07:02]} Nxc3 {[%emt 0:00:11]} 9. Qxc3 {[%emt 0:00:05]} O-O {[%emt 0:00:57]} 10. e3 {[%emt 0:01:32]} b6 {[%emt 0:04:50]} 11. b4 {[%emt 0:14:37]} dxc4 {[%emt 0:05:13]} 12. Bxc4 {[%emt 0:01:27]} Bb7 {[%emt 0:01:07]} 13. Be2 {[%emt 0:00:47]} Rc8 {[%emt 0:02:08]} 14. O-O {[%emt 0:02:29]} Nd7 {[%emt 0:00:22]} 15. Rfd1 {[%emt 0:06:11]} Rab8 {[%emt 0:12:07]} 16. a4 {[%emt 0:14:33]} Nf6 {[%emt 0:06:39]} 17. Rab1 {[%emt 0:03:44]} Be4 {[%emt 0:10:09]} 18. Rb2 {[%emt 0:03:13]} Nd5 {[%emt 0:01:48]} 19. Qd2 {[%emt 0:03:27]} c5 {[%emt 0:07:00]} 20. bxc5 {[%emt 0:12:49]} bxc5 {[%emt 0:00:10]} 21. Rxb8 {[%emt 0:01:20]} Rxb8 {[%emt 0:00:06]} 22. Ne5 {[%emt 0:01:04]} cxd4 {[%emt 0:13:51]} 23. exd4 {[%emt 0:02:47]} Qa3 {[%emt 0:07:19]} 24. Bb5 {[%emt 0:11:06]} a6 {[%emt 0:10:36]} 25. Bxa6 {[%emt 0:00:57]} Qxa4 {[%emt 0:00:12]} 26. Bd3 {[%emt 0:02:45]} Bxd3 {[%emt 0:04:01]} 27. Qxd3 {[%emt 0:00:09]} Nf4 {[%emt 0:00:48]} 28. Qf1 {[%emt 0:00:58]} Qc2 {[%emt 0:02:49]} 29. h3 {[%emt 0:01:02]} Rb2 {[%emt 0:02:06]} 30. Ng4 {[%emt 0:00:37]} h5 {[%emt 0:00:59]} 31. Ne3 {[%emt 0:00:07]} Qe4 {[%emt 0:00:16]} 32. Kh2 {[%emt 0:01:02]} Ne2 {[%emt 0:01:22]} 33. Re1 {[%emt 0:00:32]} Qf4+ {[%emt 0:00:26]} 34. Kh1 {[%emt 0:00:33]} Nxd4 {[%emt 0:00:10]} 35. Nd1 {[%emt 0:00:27]} Rd2 {[%emt 0:00:33]} 36. Kg1 {[%emt 0:00:33]} g6 {[%emt 0:01:09]} 37. Kh1 {[%emt 0:00:08]} Nf5 {[%emt 0:00:27]} 38. Kg1 {[%emt 0:00:27]} Qd4 {[%emt 0:00:24]} 39. Kh1 {[%emt 0:00:53]} Kg7 {[%emt 0:00:20]} 40. Kh2 {[%emt 0:00:00]} Qf4+ {[%emt 0:00:00]} 41. Kg1 {[%emt 0:02:15]} Qd4 {[%emt 0:04:54]} 42. Kh1 {[%emt 0:01:41]} g5 {[%emt 0:00:47]} 43. Ne3 {[%emt 0:04:54]} Nxe3 {[%emt 0:06:10]} 44. Rxe3 {[%emt 0:00:35]} Ra2 {[%emt 0:06:37]} 45. Kg1 {[%emt 0:02:45]} Qb2 {[%emt 0:02:01]} 46. Re1 {[%emt 0:01:03]} Qd4 {[%emt 0:03:26]} 47. Rd1 {[%emt 0:02:26]} Qf6 {[%emt 0:00:20]} 48. Qe1 {[%emt 0:01:44]} Rc2 {[%emt 0:02:18]} 49. Qe3 {[%emt 0:01:47]} Qf4 {[%emt 0:03:02]} 50. Qxf4 {[%emt 0:03:46]} gxf4 {[%emt 0:00:02]} 51. Rd3 {[%emt 0:00:38]} Kg6 {[%emt 0:00:47]} 52. g3 {[%emt 0:00:41]} Kg5 {[%emt 0:00:54]} 53. Kg2 {[%emt 0:02:18]} f6 {[%emt 0:01:09]} 54. gxf4+ {[%emt 0:01:32]} Kxf4 {[%emt 0:00:06]} 55. Rd4+ {[%emt 0:02:02]} Kf5 $17 {[%emt 0:00:24]} 56. Rd8 {[%emt 0:02:47]} Rc7 {[%emt 0:01:19]} 57. Rg8 {[%emt 0:02:11]} e5 {[%emt 0:00:43]} 58. Rg3 {[%emt 0:03:45]} e4 {[%emt 0:00:32]} 59. Rg8 {[%emt 0:00:51]} Kf4 {[%emt 0:00:27]} 60. Ra8 {[%emt 0:00:49]} Rg7+ {[%emt 0:01:49]} 61. Kf1 {[%emt 0:00:19]} Rd7 {[%emt 0:00:45]} 62. Kg2 {[%emt 0:00:26]} Rd2 {[%emt 0:00:27]} 63. Re8 {[%emt 0:00:32]} Re2 {[%emt 0:00:39]} 64. Ra8 {[%emt 0:00:42]} e3 {[%emt 0:02:32]} 65. Ra4+ {[%emt 0:00:17]} Kg5 {[%emt 0:00:22]} 66. h4+ {[%emt 0:00:36]} Kf5 {[%emt 0:01:00]} 67. Kf3 {[%emt 0:00:41]} Rxf2+ {[%emt 0:00:10]} 68. Kxe3 {[%emt 0:00:04]} Rg2 {[%emt 0:01:09]} 69. Rf4+ {[%emt 0:00:13]} Ke5 {[%emt 0:00:12]} 70. Ra4 {[%emt 0:01:02]} Rg3+ {[%emt 0:01:02]} 71. Ke2 {[%emt 0:00:34]} Rg2+ {[%emt 0:00:37]} 72. Ke3 {[%emt 0:00:14]} Kf5 {[%emt 0:00:19]} 73. Rf4+ {[%emt 0:00:40]} Kg6 {[%emt 0:00:11]} 74. Kf3 {[%emt 0:00:11]} Rc2 {[%emt 0:00:17]} 75. Ra4 {[%emt 0:00:39]} Rc3+ {[%emt 0:00:08]} 76. Kg2 {[%emt 0:00:32]} Re3 {[%emt 0:00:06]} 77. Rb4 {[%emt 0:00:28]} Kf5 {[%emt 0:00:19]} 78. Rb5+ {[%emt 0:00:43]} Re5 {[%emt 0:00:06]} 79. Rb4 {[%emt 0:00:21]} Re4 {[%emt 0:00:04]} 80. Rb8 {[%emt 0:00:46]} Rxh4 {[%emt 0:00:16]} 81. Kg3 {[%emt 0:00:19]} Rg4+ {[%emt 0:01:06]} 82. Kf3 {[%emt 0:00:20]} Rg7 {[%emt 0:00:27]} 83. Rb5+ {[%emt 0:00:14]} Kg6 {[%emt 0:00:06]} 84. Kg3 {[%emt 0:00:32]} Rc7 {[%emt 0:00:12]} 85. Rb4 {[%emt 0:00:16]} Kg5 {[%emt 0:00:10]} 86. Rb8 {[%emt 0:00:16]} Rc3+ {[%emt 0:00:09]} 87. Kg2 {[%emt 0:00:05]} f5 {[%emt 0:01:35]} 88. Rg8+ {[%emt 0:00:15]} Kf4 {[%emt 0:00:19]} 89. Rh8 {[%emt 0:00:11]} Rc2+ {[%emt 0:00:07]} 90. Kg1 {[%emt 0:02:08]} h4 {[%emt 0:00:20]} 91. Kf1 {[%emt 0:00:39]} Kf3 {[%emt 0:00:46]} 92. Kg1 {[%emt 0:00:12]} f4 {[%emt 0:00:17]} 93. Rg8 {[%emt 0:00:40]} Rc1+ {[%emt 0:03:10]} 94. Kh2 {[%emt 0:00:05]} Ke2 {[%emt 0:00:26]} 95. Re8+ {[%emt 0:00:31]} Kf2 {[%emt 0:00:10]} 96. Rh8 {[%emt 0:00:55]} f3 {[%emt 0:00:23]} 97. Rxh4 {[%emt 0:00:57]} Ke3 {[%emt 0:00:26]} 98. Rh3 {[%emt 0:00:28]} Ke2 {[%emt 0:00:05]} 99. Kg3 {[%emt 0:00:29]} f2 {[%emt 0:00:21]} 100. Rh2 {[%emt 0:00:18]} Rc3+ {[%emt 0:00:07]} 101. Kf4 {[%emt 0:00:12]} Ke1 {[%emt 0:00:06]} 0-1

[Event "Polish Youth 1st League 2022"]
[Site "Lublin"]
[Date "2022.06.25"]
[Round "1.30"]
[White "Kulczycka, Zofia"]
[Black "Sprzeczka, Emilia"]
[Result "0-1"]
[ECO "B50"]
[WhiteElo "1564"]
[BlackElo "1692"]
[Annotator "NA RC"]
[PlyCount "56"]
[EventDate "2022.06.24"]
[EventType "team-tourn"]
[EventCountry "POL"]
[SourceTitle "playchess.com"]
[Source "ChessBase"]
[SourceQuality "1"]
[TimeControl "40/5400+30:1800+30"]

1. e4 {[%emt 0:00:04]} c5 {[%emt 0:00:10]} 2. Nf3 {[%emt 0:00:09]} d6 {[%emt 0:00:06]} 3. c3 {[%emt 0:00:08]} Nf6 {[%emt 0:00:24]} 4. Be2 {[%emt 0:00:16]} g6 {[%emt 0:01:14]} 5. O-O {[%emt 0:01:05]} Bg7 {[%emt 0:01:10]} 6. Bb5+ {[%emt 0:01:20]} Nc6 {[%emt 0:01:06]} 7. d4 {[%emt 0:06:51]} O-O {[%emt 0:01:33]} 8. Re1 {[%emt 0:08:29]} cxd4 {[%emt 0:20:25]} 9. cxd4 {[%emt 0:00:59]} Bg4 {[%emt 0:01:31]} 10. Bxc6 {[%emt 0:17:07]} bxc6 {[%emt 0:00:15]} 11. Nc3 {[%emt 0:00:57]} Nd7 {[%emt 0:11:12]} 12. Be3 {[%emt 0:17:52]} Rb8 {[%emt 0:17:42]} 13. Rb1 {[%emt 0:04:44]} f5 {[%emt 0:03:28]} 14. h3 {[%emt 0:08:39]} fxe4 {[%emt 0:10:17]} 15. hxg4 {[%emt 0:02:44]} exf3 {[%emt 0:00:12]} 16. gxf3 {[%emt 0:00:25]} Rf7 {[%emt 0:15:05]} 17. Kg2 {[%emt 0:02:55]} d5 {[%emt 0:03:40]} 18. f4 {[%emt 0:05:33]} Nb6 {[%emt 0:01:56]} 19. Bc1 {[%emt 0:05:15]} Qd6 {[%emt 0:01:33]} 20. Qd3 {[%emt 0:03:10]} Rbf8 {[%emt 0:01:17]} 21. Ne2 {[%emt 0:01:19]} c5 {[%emt 0:02:08]} 22. dxc5 {[%emt 0:03:26]} Qxc5 {[%emt 0:00:13]} 23. Be3 {[%emt 0:00:42]} d4 {[%emt 0:01:28]} 24. Bxd4 {[%emt 0:04:12]} Qd5+ {[%emt 0:01:04]} 25. Kg3 {[%emt 0:01:07]} e5 {[%emt 0:00:28]} 26. f5 {[%emt 0:03:23]} gxf5 {[%emt 0:01:14]} 27. gxf5 {[%emt 0:00:33]} Rxf5 {[%emt 0:00:34]} 28. Kh2 {[%emt 0:00:35]} Rxf2+ {[%emt 0:01:11]} 0-1

[Event "Polish Youth 1st League 2022"]
[Site "Lublin"]
[Date "2022.06.26"]
[Round "2.1"]
[White "Madej, Marek"]
[Black "Bednarczyk, Mateusz"]
[Result "1-0"]
[ECO "B45"]
[WhiteElo "1978"]
[BlackElo "1701"]
[Annotator "NA RC"]
[PlyCount "85"]
[EventDate "2022.06.24"]
[EventType "team-tourn"]
[EventCountry "POL"]
[SourceTitle "playchess.com"]
[Source "ChessBase"]
[SourceQuality "1"]
[TimeControl "40/5400+30:1800+30"]

1. e4 {[%emt 0:00:02]} c5 {[%emt 0:00:08]} 2. Nc3 {[%emt 0:00:12]} e6 {[%emt 0:00:52]} 3. Nf3 {[%emt 0:00:20]} Nc6 {[%emt 0:00:06]} 4. d4 {[%emt 0:00:06]} cxd4 {[%emt 0:00:03]} 5. Nxd4 {[%emt 0:00:05]} Nf6 {[%emt 0:00:04]} 6. Nxc6 {[%emt 0:00:06]} bxc6 {[%emt 0:00:02]} 7. e5 {[%emt 0:00:05]} Nd5 {[%emt 0:00:03]} 8. Ne4 {[%emt 0:00:17]} Qc7 {[%emt 0:00:05]} 9. f4 {[%emt 0:00:10]} Qb6 {[%emt 0:00:20]} 10. c4 {[%emt 0:00:15]} Bb4+ {[%emt 0:00:09]} 11. Ke2 {[%emt 0:00:15]} f5 {[%emt 0:00:36]} 12. Nf2 {[%emt 0:00:34]} Ba6 {[%emt 0:00:12]} 13. Kf3 {[%emt 0:00:17]} Ne7 {[%emt 0:00:07]} 14. Be3 {[%emt 0:00:28]} Bc5 {[%emt 0:00:04]} 15. Bxc5 {[%emt 0:00:01]} Qxc5 {[%emt 0:00:03]} 16. Qd6 {[%emt 0:00:48]} Qb6 {[%emt 0:00:06]} 17. b3 {[%emt 0:00:35]} g5 {[%emt 0:13:13]} 18. Nd3 {[%emt 0:18:59]} g4+ {[%emt 0:21:00]} 19. Ke2 {[%emt 0:00:07]} Rd8 {[%emt 0:00:53]} 20. g3 {[%emt 0:05:15]} h5 {[%emt 0:15:09]} 21. h3 {[%emt 0:06:40]} Bb7 {[%emt 0:14:07]} 22. Bg2 {[%emt 0:03:12]} Kf7 {[%emt 0:08:45]} 23. Rad1 {[%emt 0:07:13]} h4 {[%emt 0:08:04]} 24. hxg4 {[%emt 0:08:18]} fxg4 {[%emt 0:00:10]} 25. Be4 {[%emt 0:07:16]} hxg3 {[%emt 0:02:18]} 26. f5 {[%emt 0:03:18]} g2 {[%emt 0:02:21]} 27. Rxh8 {[%emt 0:03:31]} Rxh8 {[%emt 0:00:38]} 28. f6 {[%emt 0:01:03]} g1=N+ {[%emt 0:02:09]} 29. Kf1 {[%emt 0:00:06]} Re8 {[%emt 0:02:46]} 30. c5 {[%emt 0:05:50]} Qa5 {[%emt 0:04:40]} 31. Kxg1 {[%emt 0:00:19]} Qxa2 {[%emt 0:00:59]} 32. fxe7 {[%emt 0:01:13]} g3 {[%emt 0:01:36]} 33. Rf1+ {[%emt 0:01:05]} Kg7 {[%emt 0:00:06]} 34. Bg2 {[%emt 0:01:14]} Ba6 {[%emt 0:04:06]} 35. Qd4 {[%emt 0:01:49]} Qe2 {[%emt 0:00:50]} 36. Qf4 {[%emt 0:01:15]} Bxd3 {[%emt 0:01:07]} 37. Qf7+ {[%emt 0:00:10]} Kh6 {[%emt 0:00:27]} 38. Rf6+ {[%emt 0:00:02]} Kg5 {[%emt 0:00:12]} 39. Qg7+ {[%emt 0:00:05]} Kh4 {[%emt 0:00:47]} 40. Rh6+ {[%emt 0:00:00]} Qh5 {[%emt 0:00:00]} 41. Qf6+ {[%emt 0:00:14]} Kg4 {[%emt 0:00:14]} 42. Bf3+ {[%emt 0:00:07]} Kh3 {[%emt 0:00:06]} 43. Rxh5# {[%emt 0:00:04]} 1-0

[Event "Polish Youth 1st League 2022"]
[Site "Lublin"]
[Date "2022.06.26"]
[Round "2.2"]
[White "Halhoul, Adam"]
[Black "Nowak, Filip"]
[Result "1-0"]
[ECO "D43"]
[WhiteElo "1675"]
[BlackElo "1819"]
[Annotator "NA RC"]
[PlyCount "131"]
[EventDate "2022.06.24"]
[EventType "team-tourn"]
[EventCountry "POL"]
[SourceTitle "playchess.com"]
[Source "ChessBase"]
[SourceQuality "1"]
[TimeControl "40/5400+30:1800+30"]

1. d4 {[%emt 0:00:08]} d5 {[%emt 0:00:11]} 2. c4 {[%emt 0:00:19]} c6 {[%emt 0:00:05]} 3. Nf3 {[%emt 0:00:59]} Nf6 {[%emt 0:00:18]} 4. Nc3 {[%emt 0:00:57]} e6 {[%emt 0:00:11]} 5. Bg5 {[%emt 0:00:11]} Nbd7 {[%emt 0:00:08]} 6. cxd5 {[%emt 0:01:25]} exd5 {[%emt 0:00:16]} 7. e3 {[%emt 0:00:39]} Be7 {[%emt 0:01:10]} 8. Bd3 {[%emt 0:01:39]} O-O {[%emt 0:01:04]} 9. O-O {[%emt 0:00:29]} h6 {[%emt 0:01:14]} 10. Bf4 {[%emt 0:03:14]} Re8 {[%emt 0:09:51]} 11. Qc2 {[%emt 0:01:26]} Bf8 {[%emt 0:07:39]} 12. Rab1 {[%emt 0:10:50]} a5 {[%emt 0:20:50]} 13. a3 {[%emt 0:11:24]} Qe7 {[%emt 0:27:41]} 14. b4 {[%emt 0:06:56]} b5 {[%emt 0:01:07]} 15. Be5 {[%emt 0:10:27]} Nb6 {[%emt 0:05:15]} 16. e4 {[%emt 0:08:13]} Be6 {[%emt 0:02:28]} 17. Bxf6 {[%emt 0:04:07]} Qxf6 {[%emt 0:00:14]} 18. Ne5 {[%emt 0:00:17]} axb4 {[%emt 0:02:11]} 19. axb4 {[%emt 0:00:25]} Rec8 {[%emt 0:00:28]} 20. f4 {[%emt 0:06:07]} dxe4 {[%emt 0:02:43]} 21. Nxe4 {[%emt 0:05:34]} Qd8 {[%emt 0:00:13]} 22. Qf2 {[%emt 0:01:40]} Ra2 {[%emt 0:01:33]} 23. Rb2 {[%emt 0:08:34]} Rxb2 {[%emt 0:01:36]} 24. Qxb2 {[%emt 0:00:08]} Bd5 {[%emt 0:02:33]} 25. Nc5 {[%emt 0:03:57]} Ra8 {[%emt 0:02:26]} 26. Ra1 {[%emt 0:01:46]} Nc4 {[%emt 0:01:40]} 27. Bxc4 {[%emt 0:02:53]} bxc4 {[%emt 0:00:19]} 28. Ra3 {[%emt 0:01:28]} Rb8 {[%emt 0:06:01]} 29. Qd2 {[%emt 0:02:21]} Ra8 {[%emt 0:02:11]} 30. Qb2 {[%emt 0:01:42]} Rxa3 {[%emt 0:00:54]} 31. Qxa3 {[%emt 0:00:01]} Qh4 {[%emt 0:00:25]} 32. Qe3 {[%emt 0:01:16]} Qh5 {[%emt 0:00:40]} 33. g4 {[%emt 0:02:56]} Qh4 {[%emt 0:00:28]} 34. h3 {[%emt 0:00:56]} h5 {[%emt 0:00:41]} 35. g5 {[%emt 0:00:26]} Bxc5 {[%emt 0:00:29]} 36. dxc5 {[%emt 0:01:04]} c3 {[%emt 0:00:40]} 37. Nd3 {[%emt 0:00:49]} c2 {[%emt 0:00:23]} 38. Nc1 {[%emt 0:00:40]} f6 {[%emt 0:00:41]} 39. g6 {[%emt 0:00:55]} Kf8 {[%emt 0:00:04]} 40. Kh2 {[%emt 0:00:00]} f5 {[%emt 0:00:00]} 41. Qd2 {[%emt 0:07:40]} Qe7 {[%emt 0:12:13]} 42. Qxc2 {[%emt 0:18:55]} Qe3 {[%emt 0:00:23]} 43. Qxf5+ {[%emt 0:01:15]} Ke7 {[%emt 0:02:17]} 44. Qe5+ {[%emt 0:01:30]} Qxe5 {[%emt 0:00:06]} 45. fxe5 {[%emt 0:00:04]} Ke6 {[%emt 0:01:03]} 46. Kg3 {[%emt 0:03:15]} Kxe5 {[%emt 0:01:00]} 47. Nd3+ {[%emt 0:00:29]} Kd4 {[%emt 0:02:55]} 48. Nf4 {[%emt 0:00:31]} Be4 {[%emt 0:00:20]} 49. Nxh5 {[%emt 0:00:24]} Bxg6 {[%emt 0:00:28]} 50. Nxg7 {[%emt 0:00:22]} Kc4 {[%emt 0:00:40]} 51. Kf4 {[%emt 0:00:41]} Kxb4 {[%emt 0:02:15]} 52. Ne6 {[%emt 0:00:17]} Bf7 {[%emt 0:04:31]} 53. Ke5 {[%emt 0:00:38]} Bxe6 {[%emt 0:00:41]} 54. Kxe6 {[%emt 0:00:07]} Kxc5 {[%emt 0:00:04]} 55. h4 {[%emt 0:00:10]} Kb4 {[%emt 0:00:49]} 56. h5 {[%emt 0:00:05]} c5 {[%emt 0:00:03]} 57. h6 {[%emt 0:00:10]} c4 {[%emt 0:00:05]} 58. h7 {[%emt 0:00:07]} c3 {[%emt 0:00:14]} 59. h8=Q {[%emt 0:00:17]} Kb3 {[%emt 0:00:04]} 60. Qb8+ {[%emt 0:00:31]} Ka2 {[%emt 0:02:32]} 61. Qa7+ {[%emt 0:00:23]} Kb1 {[%emt 0:00:37]} 62. Qb6+ {[%emt 0:00:43]} Kc1 {[%emt 0:01:48]} 63. Qe3+ {[%emt 0:00:29]} Kb2 {[%emt 0:00:26]} 64. Qd4 {[%emt 0:00:19]} Kb3 {[%emt 0:00:15]} 65. Ke5 {[%emt 0:00:27]} c2 {[%emt 0:00:15]} 66. Qa1 {[%emt 0:00:06]} 1-0

[Event "Polish Youth 1st League 2022"]
[Site "Lublin"]
[Date "2022.06.26"]
[Round "2.3"]
[White "Grot, Blazej"]
[Black "Nagly, Wojciech"]
[Result "1-0"]
[ECO "B00"]
[WhiteElo "1819"]
[BlackElo "1464"]
[Annotator "NA RC"]
[PlyCount "169"]
[EventDate "2022.06.24"]
[EventType "team-tourn"]
[EventCountry "POL"]
[SourceTitle "playchess.com"]
[Source "ChessBase"]
[SourceQuality "1"]
[TimeControl "40/5400+30:1800+30"]

1. e4 {[%emt 0:00:03]} d6 {[%emt 0:00:10]} 2. d3 {[%emt 0:01:00]} Nf6 {[%emt 0:00:31]} 3. Nf3 {[%emt 0:00:08]} c6 {[%emt 0:00:35]} 4. g3 {[%emt 0:00:10]} Bg4 {[%emt 0:00:55]} 5. Bg2 {[%emt 0:00:33]} e6 {[%emt 0:00:30]} 6. Nbd2 {[%emt 0:01:36]} d5 {[%emt 0:02:31]} 7. O-O {[%emt 0:02:44]} Be7 {[%emt 0:02:42]} 8. c3 {[%emt 0:03:28]} O-O {[%emt 0:01:33]} 9. Qc2 {[%emt 0:01:39]} Bxf3 {[%emt 0:03:04]} 10. Nxf3 {[%emt 0:00:55]} c5 {[%emt 0:03:58]} 11. Bf4 {[%emt 0:05:48]} Nc6 {[%emt 0:01:21]} 12. Rfe1 {[%emt 0:02:47]} Re8 {[%emt 0:07:59]} 13. Rad1 {[%emt 0:05:42]} Bf8 {[%emt 0:06:02]} 14. e5 {[%emt 0:10:30]} Nd7 {[%emt 0:01:51]} 15. h4 {[%emt 0:06:11]} d4 {[%emt 0:02:55]} 16. h5 {[%emt 0:10:14]} Rc8 {[%emt 0:03:15]} 17. Qe2 {[%emt 0:04:34]} Qa5 {[%emt 0:02:42]} 18. Qc2 {[%emt 0:10:11]} b5 {[%emt 0:05:38]} 19. g4 {[%emt 0:05:50]} Nb6 {[%emt 0:02:18]} 20. Ng5 {[%emt 0:03:34]} Nd5 {[%emt 0:08:24]} 21. Bd2 {[%emt 0:02:17]} h6 {[%emt 0:04:40]} 22. Nf3 {[%emt 0:06:20]} dxc3 {[%emt 0:05:09]} 23. bxc3 {[%emt 0:00:10]} c4 {[%emt 0:05:51]} 24. dxc4 {[%emt 0:01:00]} bxc4 {[%emt 0:00:38]} 25. g5 {[%emt 0:01:05]} Nce7 {[%emt 0:06:20]} 26. gxh6 {[%emt 0:01:40]} gxh6 {[%emt 0:00:18]} 27. Nd4 {[%emt 0:00:51]} Nc6 {[%emt 0:07:09]} 28. Qc1 {[%emt 0:05:36]} Nxd4 29. cxd4 {[%emt 0:00:09]} Qa3 {[%emt 0:11:56]} 30. Qxa3 {[%emt 0:05:05]} Bxa3 {[%emt 0:00:01]} 31. Bxh6 {[%emt 0:00:11]} Bb4 {[%emt 0:02:10]} 32. Rf1 {[%emt 0:01:50]} c3 {[%emt 0:02:20]} 33. Rc1 {[%emt 0:00:34]} Ba3 {[%emt 0:00:33]} 34. Rc2 {[%emt 0:00:52]} Nb4 {[%emt 0:00:10]} 35. Re2 {[%emt 0:00:03]} c2 {[%emt 0:01:15]} 36. Bc1 {[%emt 0:00:19]} Bxc1 {[%emt 0:00:24]} 37. Rxc1 {[%emt 0:00:07]} Rc4 {[%emt 0:00:34]} 38. Be4 {[%emt 0:00:12]} Rxd4 {[%emt 0:00:36]} 39. Bxc2 Rc8 {[%emt 0:00:13]} 40. Bh7+ {[%emt 0:00:00]} Kxh7 {[%emt 0:00:00]} 41. Rxc8 {[%emt 0:00:24]} Nd5 {[%emt 0:00:38]} 42. Rd8 {[%emt 0:01:24]} Rg4+ {[%emt 0:03:04]} 43. Kh2 {[%emt 0:01:02]} Rh4+ {[%emt 0:00:22]} 44. Kg3 {[%emt 0:00:19]} Rxh5 {[%emt 0:00:17]} 45. Rd7 {[%emt 0:00:45]} Kg6 {[%emt 0:00:08]} 46. Rxa7 {[%emt 0:00:09]} Rg5+ {[%emt 0:00:38]} 47. Kh2 {[%emt 0:00:26]} Rh5+ {[%emt 0:03:36]} 48. Kg1 {[%emt 0:00:34]} Rg5+ {[%emt 0:00:50]} 49. Kf1 {[%emt 0:00:16]} Rh5 {[%emt 0:00:24]} 50. f3 {[%emt 0:01:14]} Nf4 {[%emt 0:02:00]} 51. Re4 {[%emt 0:00:31]} Nd3 {[%emt 0:06:31]} 52. Rg4+ {[%emt 0:02:32]} Kh6 53. Rxf7 {[%emt 0:00:50]} Nxe5 {[%emt 0:02:52]} 54. Rf6+ {[%emt 0:00:05]} Kh7 {[%emt 0:00:06]} 55. Rg3 {[%emt 0:00:26]} Rh1+ {[%emt 0:00:32]} 56. Kg2 {[%emt 0:00:11]} Ra1 {[%emt 0:00:05]} 57. Rxe6 {[%emt 0:00:30]} Rxa2+ {[%emt 0:00:05]} 58. Kh3 {[%emt 0:00:05]} Nd3 {[%emt 0:00:12]} 59. Re7+ {[%emt 0:00:48]} Kh6 {[%emt 0:00:18]} 60. Rg1 {[%emt 0:00:32]} Ra5 {[%emt 0:02:30]} 61. Rb1 {[%emt 0:03:06]} Nf4+ {[%emt 0:00:38]} 62. Kg3 {[%emt 0:00:20]} Nh5+ {[%emt 0:00:58]} 63. Kf2 {[%emt 0:02:20]} Ra2+ {[%emt 0:00:24]} 64. Re2 {[%emt 0:00:05]} Ra6 {[%emt 0:00:26]} 65. Rb8 {[%emt 0:01:07]} Nf4 {[%emt 0:00:17]} 66. Rc2 {[%emt 0:00:09]} Nd3+ {[%emt 0:00:05]} 67. Ke3 {[%emt 0:00:15]} Ne5 {[%emt 0:00:31]} 68. f4 {[%emt 0:00:34]} Ng4+ {[%emt 0:00:29]} 69. Kf3 {[%emt 0:00:07]} Nf6 {[%emt 0:00:27]} 70. Rb3 {[%emt 0:01:06]} Nd5 {[%emt 0:01:48]} 71. Rc4 {[%emt 0:00:40]} Ne7 {[%emt 0:00:19]} 72. Rb5 {[%emt 0:00:33]} Ng6 {[%emt 0:01:23]} 73. f5 {[%emt 0:00:36]} Ne7 {[%emt 0:00:30]} 74. Re4 {[%emt 0:00:14]} Nc6 {[%emt 0:00:50]} 75. Kg4 {[%emt 0:00:16]} Kg7 76. Rb7+ {[%emt 0:00:10]} Kf8 {[%emt 0:00:27]} 77. Kg5 {[%emt 0:00:18]} Na5 {[%emt 0:00:35]} 78. Ra4 {[%emt 0:00:33]} Kg8 {[%emt 0:00:54]} 79. Rb5 {[%emt 0:00:06]} Rd6 {[%emt 0:00:14]} 80. Rb8+ {[%emt 0:00:09]} Kf7 {[%emt 0:00:05]} 81. Rxa5 {[%emt 0:00:03]} Rd7 {[%emt 0:00:06]} 82. Rab5 {[%emt 0:00:05]} Ke7 {[%emt 0:00:10]} 83. R8b7 {[%emt 0:00:05]} Rxb7 {[%emt 0:00:10]} 84. Rxb7+ {[%emt 0:00:05]} Kf8 {[%emt 0:00:02]} 85. Kg6 {[%emt 0:00:05]} 1-0

[Event "Polish Youth 1st League 2022"]
[Site "Lublin"]
[Date "2022.06.26"]
[Round "2.4"]
[White "Gibala, Adam"]
[Black "Rozanski, Mateusz"]
[Result "1-0"]
[ECO "C79"]
[WhiteElo "1516"]
[BlackElo "1720"]
[Annotator "NA RC"]
[PlyCount "49"]
[EventDate "2022.06.24"]
[EventType "team-tourn"]
[EventCountry "POL"]
[SourceTitle "playchess.com"]
[Source "ChessBase"]
[SourceQuality "1"]
[TimeControl "40/5400+30:1800+30"]

1. e4 {[%emt 0:00:02]} e5 {[%emt 0:00:07]} 2. Nf3 {[%emt 0:00:05]} Nc6 {[%emt 0:00:19]} 3. Bb5 {[%emt 0:00:07]} a6 {[%emt 0:00:27]} 4. Ba4 {[%emt 0:00:06]} Nf6 {[%emt 0:00:20]} 5. O-O {[%emt 0:00:46]} d6 {[%emt 0:00:48]} 6. Re1 {[%emt 0:00:14]} Bg4 {[%emt 0:00:17]} 7. c3 {[%emt 0:01:17]} Be7 {[%emt 0:00:13]} 8. h3 {[%emt 0:03:24]} Bh5 {[%emt 0:03:36]} 9. Bxc6+ {[%emt 0:02:33]} bxc6 {[%emt 0:00:09]} 10. d4 {[%emt 0:00:05]} O-O {[%emt 0:00:20]} 11. dxe5 {[%emt 0:01:35]} Bxf3 {[%emt 0:03:51]} 12. Qxf3 {[%emt 0:00:07]} dxe5 {[%emt 0:00:33]} 13. Nd2 {[%emt 0:00:29]} Qd6 {[%emt 0:01:16]} 14. Nc4 {[%emt 0:00:34]} Qe6 {[%emt 0:00:21]} 15. b3 {[%emt 0:00:45]} Rad8 {[%emt 0:00:32]} 16. Bg5 {[%emt 0:03:55]} Ne8 {[%emt 0:02:25]} 17. Bxe7 {[%emt 0:00:43]} Qxe7 {[%emt 0:00:09]} 18. Qg3 {[%emt 0:01:16]} f6 {[%emt 0:00:45]} 19. Na5 {[%emt 0:02:37]} Rd6 {[%emt 0:03:43]} 20. Nb7 {[%emt 0:00:29]} Rd2 {[%emt 0:05:52]} 21. Qe3 {[%emt 0:00:32]} Qd7 {[%emt 0:00:52]} 22. Nc5 {[%emt 0:00:09]} Qd6 {[%emt 0:00:07]} 23. b4 {[%emt 0:00:35]} f5 {[%emt 0:00:51]} 24. exf5 {[%emt 0:00:06]} Rxf5 {[%emt 0:00:08]} 25. Ne4 {[%emt 0:00:06]} 1-0